Workbook

Sheet Cover Page
D1: Add company logo
N2: Version 20.6
B8: Add photo
N13: Notes:
N14: This template may require adjustments by individual operators to meet specific reporting requirements as defined in the site Permit(s)
B29: Annual Performance Report 2020
B31: Permit EPR/EP3034SN
B33: Eastcroft EfW
B37: WasteNotts (Reclamation) Limited
B39: Year: | C39: 2020
B41: Address: | C41: Incinerator Road, Off Cattle Market Road, Nottingham, NG23JH
B43: Tel: | C43: 0115 9869505
B45: Email: | C45: info.eastcroft@fccenvironment.co.uk
B47: Prepared by: | C47: Michael Day | F47: Position: | G47: Environment Manager
B49: Approved by: | C49: Tony Cox | F49: Position: | G49: General Manager
B51: Version: | C51: 1
B53: Issue Date: | C53: 2021-01-25

Sheet Contents
A1: Annual performance report for 2020 | E1: Eastcroft EfW
A3: Contents | K3: Notes:
A4: Section | B4: Subject | H4: Page | K4: Section references and Page nos. to be inserted
B5: Facility Information | H5: 3 | K5: Sections and Subjects may require adjustment by individual operators to meet specific reporting requirements as defined in the sites Permit(s)
B6: Operational data | H6: 4
B7: Operational summary | H7: 5
B8: Performance Form 1 | H8: 6
B9: Energy Form 1 | H9: 7
B10: Permit Compliance | H10: 8
B11: Improvements | H11: 9
B12: Public Liasion | H12: 10
B13: Residue Quality | H13: 11
B14: Emissions to Air (periodically monitored) | H14: 12
B15: Emissions to Air (continuously monitored) | H15: 13
B16: Hydrogen Chloride emissions | H16: 14
B17: Sulphur Dioxdie emsissions | H17: 15
B18: Oxides of Notrigen emissions | H18: 16
B19: Total Organic Carbon emissions | H19: 17
B20: Particulate Matter emissions | H20: 18
B21: Carbon Monoxide emissions | H21: 19
B22: Ammonia emissions | H22: 20
A24: Version Control
A25: Section | B25: Information | H25: Date
A32: Distribution
A33: Copy | B33: Name, Role | H33: No.
A42: This report is required under the Industrial Emissions Directive’s Article 55(2) requirements on reporting and public information on waste incineration plants and co-incineration plants, which require the operator to produce an annual report on the functioning and monitoring of the plant and make it available to the public.

Sheet Facility Info
A1: =+'Cover Page'!$B$29 -> Annual Performance Report 2020 | E1: =+'Cover Page'!$B$33 -> Eastcroft EfW
A3: Plant Description and Design | K3: Notes:
A5: The EfW facility currently comprises two incineration streams each capable of burning up to 11.7 tonnes/hour of municipal and light commercial and industrial waste. The plant has a theoretical capacity of just over 200,000 tonnes per annum; however with planned maintenance the annual throughput is approximately 185,000 tonnes. The site has planning permission to add a third line to the plant which is included in the scope of the Environmental Permit (EP3034SN) but has yet to be developed. The facility generates around 50 tonnes of steam per hour with no electrical generation undertaken at the Eastcroft facility. Steam is exported to a third party (EnviroEnergy) who operate a combined heat and power facility providing electricity and feeding into Nottingham's district heating network. | K5: Include summary of plant design, design capacity, no. of combustion lines, electrical and heat capacity and any other general information that describes the facility, its location and purpose
A20: Summary of Operational Processes and Procedures
A22: Municipal waste and non-hazardous commercial/industrial/trade waste is delivered to site by lorry and tipped into one of two refuse bunkers inside the tipping hall. Deliveries are typically made from Monday to Saturday morning. Waste is transferred from the bunkers by grab crane into the feed chute of each incinerator stream. Waste is only fed to the incinerator if the temperature is above 850°C. Each incinerator stream has a moving grate on which the waste is burned, with preheated air being injected from below the grate. Combustion air is drawn from the tipping hall and boiler hall to reduce odours and dust levels in these areas and fed to the furnace via an air preheater which can raise the temperature of the air up to 160°C. Two auxiliary burners, fired on gas oil, are installed halfway up each combustion chamber to maintain temperatures above the 850°C threshold. The auxiliary burners are also used to pre-heat the incinerators before start up. Ammonium hydroxide is injected into the furnaces to reduce emissions of nitrogen oxides (this technique is known as selective non-catalytic reduction or SNCR). Hot gases from the combustion chamber pass to a boiler in which steam is raised and sent to the London Road Heat Station (operated by EnviroEnergy) for supply of heat to the district heating system and generation of electricity. Flue gases leaving the boiler are cooled to about 130°C in the economiser to achieve the correct temperature for gas treatment. Incinerator bottom ash is quenched in water and collected in a residuals bunker inside the building. The silo is emptied regularly and the bottom ash is sent for metal extraction and use as a substitute aggregate. Fly ash entrained within the incinerator exhaust gases, together with any accumulations of dust removed from the walls of the economiser by the shot cleaning system, is treated in the air pollution control equipment. Each incinerator stream has its own dedicated air pollution control equipment. Cooled flue gases leaving the economiser are dosed with a mixture of hydrated lime, activated carbon and recirculated reagent, in order to reduce acid gases (by reaction with the lime), and other substances such as heavy metals and hydrocarbons (by adsorption onto the activated carbon). The exhaust gases and reagent particles are then filtered in a four compartment fabric filter to remove the dust burden. The fabric filters are regularly cleaned by reverse jet pulses, and the collected end product is stored in the APC residue silo. The APC residue silo is regularly emptied and the residue used to treat industrial acidic wastes before final disposal in a suitably licensed landfill site. The treated exhaust gases from both streams are discharged via the 91m high stack. The final emissions from the municipal waste incinerator are continuously monitored for particulate matter, sulphur dioxide, nitrogen oxides, carbon monoxide, hydrogen chloride, volatile organic compounds and ammonia prior to entry into the main stack. | K22: Include summary of key processes and procedures such as (but not limited to); waste reception, control rooms, grate, bed and boiler, energy & heat generation, cooling systems, residue management, emission controls, health and safety systems, maintenance

Sheet Operational Data
A1: =+'Cover Page'!$B$29 -> Annual Performance Report 2020 | E1: =+'Cover Page'!$B$33 -> Eastcroft EfW
A3: Operational Data | K3: Notes:
A4: Plant Size | B4: 200000 | D4: tonnes pa | F4: MWth | H4: MWe | K4: * - RDF to include SRF
A5: No. of combustion lines | B5: 1 | D5: No. of Turbines: | F5: 0 | K5: ** - CHP plants only
K6: 2020 updates include; heat in MWh, water in Litres, NCV in MJ/kg
A7: Waste types received | B7: Unit | C7: Q1 | D7: Q2 | E7: Q3 | F7: Q4 | G7: Year Total | H7: %
A8: Household / Local Authority | B8: tonnes | C8: 52819 | D8: 42913 | E8: 44151 | F8: 51209 | G8: =SUM(C8:F8) -> 191092 | H8: =IF(G8>0,G8/$G$15,"-") -> 0.999947358 | K8: Availabiity Definition: 'the availability of a line is to be calculated by the number of hours the line reported Continuously Monitored emission levels to the Regulator through the calendar year divided by the total number of hours in that year. The overall plant availability is calculated as the Mean of all lines in the plant. For clarity this includes periods of Other Than Normal Operating Conditions (OTNOC) and abnormal operation.' Rationale: The primary function of an Energy from Waste facility is the disposal of waste. It follows therefore that the availability of a plant is determined by the period of time a facility spends undertaking this activity.
A9: Commercial & Industrial | C9: 10.06 | D9: 0 | E9: 0 | F9: 0 | G9: =SUM(C9:F9) -> 10.06 | H9: 5.264202803e-05
A10: Hazardous | C10: 0 | D10: 0 | E10: 0 | F10: 0 | G10: 0 | H10: -
A11: Clinical | C11: 0 | D11: 0 | E11: 0 | F11: 0 | G11: 0 | H11: -
A12: Waste wood (biomass) | C12: 0 | D12: 0 | E12: 0 | F12: 0 | G12: 0 | H12: -
A13: Refuse Derived Fuel * - H'hold/LA | C13: 0 | D13: 0 | E13: 0 | F13: 0 | G13: 0 | H13: -
A14: Refuse Derived Fuel * - C&I | C14: 0 | D14: 0 | E14: 0 | F14: 0 | G14: 0 | H14: -
A15: Total waste received | C15: =SUM(C8:C14) -> 52829.06 | D15: =SUM(D8:D14) -> 42913 | E15: =SUM(E8:E14) -> 44151 | F15: =SUM(F8:F14) -> 51209 | G15: =SUM(G8:G14) -> 191102.06 | H15: 1
A16: Rejected Waste | C16: 0 | D16: 0 | E16: 0 | F16: 0 | G16: =SUM(C16:F16) -> 0 | H16: =IF(G16>0,G16/$G$15,"-") -> -
A17: Unprocessed waste transferred out | C17: 0 | D17: 0 | E17: 0 | F17: 0 | G17: 0 | H17: =IF(G17>0,G17/$G$15,"-") -> -
A18: Total waste combusted | C18: =C15-SUM(C16:C17) -> 52829.06 | D18: =D15-SUM(D16:D17) -> 42913 | E18: 44151 | F18: 51209 | G18: =SUM(C18:F18) -> 191102.06 | H18: =IF(G18>0,G18/$G$15,"-") -> 1
A20: Energy Useage / Export | B20: Unit | C20: Q1 | D20: Q2 | E20: Q3 | F20: Q4 | G20: Year Total | H20: KWh/te
A21: Power Generated | B21: MWh | C21: 0 | D21: 0 | E21: 0 | F21: 0 | G21: =SUM(C21:F21) -> 0 | H21: =IF(G21>0,G21*1000/$G$18,"-") -> -
A22: Power Exported | C22: 0 | D22: 0 | E22: 0 | F22: 0 | G22: =SUM(C22:F22) -> 0 | H22: =IF(G22>0,G22*1000/$G$18,"-") -> -
A23: Power Used on site | C23: 2348 | D23: 2082 | E23: 2091 | F23: 2576 | G23: =SUM(C23:F23) -> 9097 | H23: =IF(G23>0,G23*1000/$G$18,"-") -> 47.60283589
A24: Power Imported | C24: 2348 | D24: 2082 | E24: 2091 | F24: 2576 | G24: 9097 | H24: =IF(G24>0,G24*1000/$G$18,"-") -> 47.60283589
A25: Parasitic Load | B25: % | C25: =IF(C21>0,1-C22/(C21+C24),"-") -> - | D25: =IF(D21>0,1-D22/(D21+D24),"-") -> - | E25: =IF(E21>0,1-E22/(E21+E24),"-") -> - | F25: =IF(F21>0,1-F22/(F21+F24),"-") -> - | G25: =IF(G21>0,1-G22/(G21+G24),"-") -> -
A26: Thermal Energy Produced ** | B26: MWh | C26: 107438 | D26: 91803 | E26: 92764 | F26: 112496 | G26: =SUM(C26:F26) -> 404501 | H26: =IF(G26>0,G26*1000/$G$18,"-") -> 2116.675247
A27: Thermal Energy Exported ** | C27: =C26 -> 107438 | D27: =D26 -> 91803 | E27: 92764 | F27: 112496 | G27: 404501 | H27: =IF(G27>0,G27*1000/$G$18,"-") -> 2116.675247
A28: R1 value | G28: n/a
A30: Waste Disposal & Recovery | B30: Unit | C30: Q1 | D30: Q2 | E30: Q3 | F30: Q4 | G30: Year Total | H30: % inputs
A31: APC Residues - produced | B31: tonnes | C31: 1140 | D31: 1111 | E31: 975 | F31: 1174 | G31: =SUM(C31:F31) -> 4400 | H31: =IF(G31>0,G31/$G$15,"-") -> 0.02302434626
A32: IBA - produced | C32: 9320 | D32: 9658 | E32: 8658 | F32: 9908 | G32: 37544 | H32: =IF(G32>0,G32/$G$15,"-") -> 0.1964604672
A33: Metals recycling | C33: 0 | D33: 0 | E33: 0 | F33: 0 | G33: =SUM(C33:F33) -> 0 | H33: =IF(G33>0,G33/$G$15,"-") -> -
A35: Raw Material Usage | B35: Unit | C35: Q1 | D35: Q2 | E35: Q3 | F35: Q4 | G35: Year Total | H35: kg or Ltr /te
A36: Mains Water | B36: ltrs | C36: 908 | D36: 789 | E36: 908 | F36: 955 | G36: =SUM(C36:F36) -> 3560 | H36: =IF(G36>0,G36/$G$15,"-") -> 0.01862878924
A37: Other Water | B37: ltrs | C37: 0 | D37: 0 | E37: 0 | F37: 0 | G37: 0 | H37: =IF(G37>0,G37/$G$15,"-") -> -
A38: Ammonia | B38: kgs | C38: 114000 | D38: 80000 | E38: 100000 | F38: 160000 | G38: 454000 | H38: =IF(G38>0,G38/$G$15,"-") -> 2.375693909
A39: Activated Carbon | B39: kgs | C39: 26208 | D39: 26083 | E39: 26688 | F39: 26976 | G39: 105955 | H39: =IF(G39>0,G39/$G$15,"-") -> 0.5544419563
A40: Lime / hydrated lime | B40: kgs | C40: 227041 | D40: 190607 | E40: 188008 | F40: 175599 | G40: 781255 | H40: 4.088155826
A41: Fuel oil | B41: ltrs | C41: 32221 | D41: 32011 | E41: 73008 | F41: 9247 | G41: 146487 | H41: 0.7665380478
A42: Gas | B42: cf | C42: 0 | D42: 0 | E42: 0 | F42: 0 | G42: 0
A43: Other | C43: 0 | D43: 0 | E43: 0 | F43: 0 | G43: 0
A45: Summary | B45: Line/Unit | C45: Q1 | D45: Q2 | E45: Q3 | F45: Q4 | G45: Year Total | J45: Hrs in year
A46: Availability of waste combustion by line, hrs | B46: =+B5 -> 1 | C46: 2146 | D46: 1837 | E46: 1797 | F46: 2206 | G46: =SUM(C46:F46) -> 7986 | H46: =G46/$J$46 -> 0.9091530055 | J46: =24*366 -> 8784
B47: 2 | C47: 2172 | D47: 1824 | E47: 1914 | F47: 2208 | G47: 8118 | H47: =G47/$J$46 -> 0.9241803279
A48: Overall Availability, mean avg. of all lines, hrs | C48: =AVERAGE(C46:C47) -> 2159 | D48: =AVERAGE(D46:D47) -> 1830.5 | E48: 1855.5 | F48: 2207 | G48: =AVERAGE(G46:G47) -> 8052 | H48: =G48/$J$46 -> 0.9166666667
A49: Hours of heat / steam export | B49: 1 | C49: =C46 -> 2146 | D49: =D46 -> 1837 | E49: 1797 | F49: 2206 | G49: 7986 | H49: =G49/$J$46 -> 0.9091530055
A50: Hours of heat / steam export | B50: 2 | C50: =C47 -> 2172 | D50: 1824 | E50: 1914 | F50: 2208 | G50: 8118 | H50: =G50/$J$46 -> 0.9241803279
A51: Net Calorific Value of waste | B51: MJ/kg | C51: 8.3 | D51: 8.3 | E51: 8.3 | F51: 8.3 | G51: 8.3 | H51: -
A52: Abnormal Events | B52: qty. | C52: 0 | D52: 0 | E52: 0 | F52: 0 | G52: 0 | H52: =IF(G52>0,"yes","no") -> no
A53: Abnormal operation | B53: hours | C53: 0 | D53: 0 | E53: 0 | F53: 0 | G53: 0 | H53: =+(G53)/J46 -> 0
A54: Permit Breaches | B54: qty. | C54: 1 | D54: 1 | E54: 0 | F54: 0 | G54: 2 | H54: =IF(G54>0,"yes","no") -> yes

Sheet Operational Summary
A1: =+'Cover Page'!$B$29 -> Annual Performance Report 2020 | E1: =+'Cover Page'!$B$33 -> Eastcroft EfW
A3: Summary of Plant Operations and Maintenance during the reporting year | K3: Notes:
A5: During 2020 the facility ran for 16,104 hours across the 2 lines representing an availability of 91.67% with 191,097 tonnes delivered to site compared to a permit limit of 200,000 tonnes per annum. Nearly all of this waste was delivered by the local authorities of Nottingham and the surrounding area and most other wastes being categorised as municipal (Chapter 20 of the List of Wastes Regulations). The facility submitted 2 schedule notifications during the year, 1 for a half hourly value for Total Organic Carbon and a second for a sample of Hydrogen Fluoride. No periods of abnormal operation or substantiated complaints were received. The plant provided 405 Gwh of energy in the form of steam and hot water to the EnviroEnergy facility who operate a combined heat and power station, providing electricity to private customers, the national grid and provides heating to households and commercial premises through their district heating system. Eastcroft receives all electrical supply and water for the process from EnviroEnergy. The main period of downtime related to a planned maintenance period within where both routine maintenance that cannot be undertaken while the plant is operational took place and some major replacements to boiler parts were also undertaken. Further modifications and optimisation to the combustion and other processes was undertaken throughout the year while a Continuous Emissions Monitoring system installed and completed quality assurance checks in late 2019 become operational at the start of 2020. | K5: Include summary of key operational and/or maintenance activity undertaken in the year, such as any major component upgrades and/or replacements
A29: Summary of Residue Handling for the reporting year
A31: Incinerator Bottom Ash (IBA) is sampled 4 times per year for permit compliance purposes, in particular for Total Organic Content where the permit has a limit of 3%. Full compliance was achieved during 2020; no values were above 3% with an average value of 1.2% achieved. Additional testing of IBA is undertaken in order to correctly classify the IBA. 24 samples (2 per month) were taken in 2020 to assess for any hazardous content within the IBA. During 2020 all 24 sample results were returned confirming the classification of the IBA as non-hazardous. All metals within the IBA are sent along with the non-hazardous IBA to a third party company who operate a permitted facility dedicated to management of bottom ash. Metals are segregated and sent for recycling while the remaining incinerator bottom ash is used as a substitute aggregate material for use within the construction industry. Modifications simplifying the ash removal process were made during late 2020, with vehicles now directly loaded via the existing crane rather than the crane loading a separate silo. Air Pollution Control Residues (APCr) formed from the cleaning of the flue gases are also analysed on a quarterly basis, albeit with no limits set within the permit. The APCr is tankered to a permitted treatment site where the material is used to neutralise highly acidic wastes before the resulting residue is sent for disposal. | K31: Include in here a summary of residue handling regimes and destinations

Sheet Perf. Form 1
A1: =+'Cover Page'!C39 -> 2020 | B1: Annual Reporting Performance Form 1
A3: =+'Cover Page'!B31 -> Permit EPR/EP3034SN | F3: Operator: | G3: WasteNotts (Reclamation) Limited
A4: Facility: | B4: =+'Cover Page'!B33:I33 -> Eastcroft EfW | F4: Form: | G4: Performance 1
A6: Reporting Period from: | D6: 2020-01-01 | F6: to: | G6: 2020-12-31
A8: =+A1 -> 2020 | B8: Annual Reporting of Waste Disposal and Recovery
A9: Waste Description | C9: Disposal Route(s) | E9: Disposal Tonnes | G9: Recovery Tonnes | I9: % / tonne of waste incinerated
A10: 1) Hazardous Wastes
A11: APC Residues | C11: D13 | E11: ='Operational Data'!G31 -> 4400 | I11: ='Operational Data'!H31 -> 0.02302434626
A12: IBA | I12: =IF((E12+G12)>0,(E12+G12)/#REF!, "-") -> -
A13: Total Hazardous Waste | E13: =SUM(E11:F12) -> 4400 | I13: =I11 -> 0.02302434626
A15: 2) Non-Hazardous Wastes
A16: IBA | C16: R05 | G16: ='Operational Data'!G32 -> 37544 | I16: ='Operational Data'!H32 -> 0.1964604672
A17: Ferrous Metal | I17: =IF((E17+G17)>0,(E17+G17)/#REF!, "-") -> -
A18: Process Water | I18: =IF((E18+G18)>0,(E18+G18)/#REF!, "-") -> -
A19: Total Non-Hazardous Waste | E19: =SUM(E16:F18) -> 0 | G19: =SUM(G16:H18) -> 37544 | I19: =I16 -> 0.1964604672
A20: TOTAL WASTE | E20: =+E19+E13 -> 4400 | G20: =+G19+G13 -> 37544 | I20: =I19+I11 -> 0.2194848135
A22: Operator’s comments :
A23: All metal is accounted for within the IBA which is separated by a third party IBA recycling facility.
A27: =+A1 -> 2020 | B27: Annual Reporting of Water and Other Raw Material Usage
A28: Raw Material | E28: Usage | G28: Unit | H28: Specific Usage | J28: Unit
A29: Mains Water | E29: ='Operational Data'!G36 -> 3560 | G29: m3 | H29: 0.02 | J29: m3/te
A30: Total Water | E30: 3560 | G30: m3 | H30: 0.02 | J30: m3/te
A31: Ammonia | E31: 454000 | G31: kg | H31: 2.38 | J31: kg/te
A32: Activated Carbon | E32: 105955 | G32: kg | H32: 0.55 | J32: kg/te
A33: Lime | E33: 781255 | G33: kg | H33: 4.09 | J33: kg/te
A35: Operator’s comments :
A39: =+A27 -> 2020 | B39: Annual Reporting of other performance indicators
A40: Parameter | C40: Results by Line
C41: A1 | D41: A2 | E41: A3 | F41: A4 | G41: A5 | I41: Turbine 1 | J41: Turbine 2
A42: Operating hours for the year, hours | C42: ='Operational Data'!G46 -> 7986 | D42: ='Operational Data'!G47 -> 8118
A43: Number of periods of abnormal operation, qty. | C43: 0 | D43: 0
A44: Cumulative hours of abnormal operation for this year, hours | C44: 0 | D44: 0
A46: Operator’s comments :
A52: Signed: | G52: Date: | H52: 2021-01-15

Sheet Energy Form 1
A1: =+'Cover Page'!C39 -> 2020 | B1: Annual Reporting of Energy Usage/Export
A3: =+'Cover Page'!B31 -> Permit EPR/EP3034SN | F3: Operator: | G3: ='Perf. Form 1'!G3:I3 -> WasteNotts (Reclamation) Limited
A5: Facility: | B5: =+'Cover Page'!B33:I33 -> Eastcroft EfW | F5: Form: | G5: Energy 1
A7: Reporting Period from: | D7: =+'Perf. Form 1'!D6:E6 -> 2020-01-01 | F7: to: | G7: =+'Perf. Form 1'!G6:H6 -> 2020-12-31
A9: Energy Source | D9: Energy Usage | F9: Unit | G9: Specific Usage (KWh/tonne incinerated
A10: Electricity Produced | D10: 0 | F10: MWh | G10: 0
A11: Electricity Imported | D11: 9097 | F11: MWh | G11: 48
A12: Electricity Exported | D12: 0 | F12: MWh | G12: 0
A13: Gas Oil | D13: 124148 | F13: tonnes | G13: 0.00065
A14: Steam/hot water exported | D14: 405 | F14: GWh | G14: 2117
A18: Operator’s comments :
A19: Eastcroft sends steam to a third party who operate a combined heat and power facility and thus no electricity generation is provided from Eastcroft in the returns and all electricity is imported from the combined heat and power station operators (EnviroEnergy).
A29: Signed: | G29: Date: | H29: 2021-01-15

Sheet Permit Compliance
A1: =+'Cover Page'!$B$29 -> Annual Performance Report 2020 | E1: =+'Cover Page'!$B$33 -> Eastcroft EfW
A3: Summary of Permit Compliance
A5: Compliance with permit limits for continuously monitored pollutants
A7: The plant met its emission limits as per the table below:
A8: Substance | C8: Percentage time compliant during operation | L8: Notes:
C9: Half-hourly limit | F9: Daily limit | L9: Report to 2 decimal places, i.e. xx.xx% Please provide a brief summary of each notification or non-compliance in the table (rather than just referring to notifications that were sent to the Regulator).
A10: Particulates | C10: 1 | F10: 1
A11: Oxides of nitrogen | C11: 1 | F11: 1
A12: Sulphur dioxide | C12: 1 | F12: 1
A13: Carbon monoxide | C13: 100% 95% of 10-min averages | F13: 1
A14: Total organic carbon | C14: 0.9999 | F14: 1
A15: Hydrogen chloride | C15: 1 | F15: 1
A17: Summary of any notifications or non-compliances under the permit
A18: Date | B18: Summary of notification or non-compliance | E18: Reason | H18: Measures taken to prevent reoccurrence
A19: 2020-02-03 | B19: Line 2 half hourly TOC value of 20.8 against limit of 20 | E19: Substance within waste | H19: Communication with waste suppliers
A20: 2020-04-30 | B20: Line 2 HF periodic result of 2.7 against limit of 2 | E20: Waste | H20: Additional monitoring and inspections
A22: Summary of any complaints received and actions to taken to resolve them.
A23: Date | B23: Summary of complaint | E23: Reason * | H23: Measures taken to prevent reoccurrence
A24: 2020-07-13 | B24: Noise | E24: Unsubstantiated - source of noise not relating to site operations. | H24: N/A
E25: * including whether substantiated by the operator or the EA

Sheet Improvements
A1: =+'Cover Page'!$B$29 -> Annual Performance Report 2020 | E1: =+'Cover Page'!$B$33 -> Eastcroft EfW
A3: Summary of Plant Improvements
A5: Summary of any efficiency improvements that have been completed within the year.
A6: Work to optimise the combustion control system and reagent dosing systems continued throughout 2020 along with routine maintenance as per the sites maintenance schedule. A new Continuous Emissions Monitoring system which was installed and undertook quality assurance checks become operational for 2020. providing additional redundancy to the previous system.
A16: Summary of any permit improvement conditions that have been completed within the year and the resulting environmental benefits.
A17: All improvement conditions relating to the existing facility have been completed in advance of 2020. 2 improvement conditions remain within the current permit, these relate to the potential expansion of the facility and the addition of a third line. These conditions cannot be progress further until plans for the development of a third line have been concluded.
A27: Summary of any changes to the plant or operating techniques which required a variation to the permit and a summary of the resulting environmental impact.
A28: No changes have been undertaken that require a permit variation. Over the next year as part of the BREF implementation process there may be variations required to update the permit to incorporate the latest requirements of the Waste Incineration BREF.
A38: Summary of any other improvements made to the plant or planned to be made and a summary of the resulting environmental benefits.
A39: Plans continue to develop a third line for the facility to divert further waste from landfill. Other modifications to the control systems for the plant will be undertaken to ensure compliance can continue to be achieved with the implementation of the revised Waste Incineration BREF and the lower emission limit values this will introduce.

Sheet Public Liasion
A1: =+'Cover Page'!$B$29 -> Annual Performance Report 2020 | E1: =+'Cover Page'!$B$33 -> Eastcroft EfW
A3: Details of Public & Stakeholder Liaison
A5: Summary of events held during the reporting year.
A6: Date | C6: Description
A7: 2020-01-15 | C7: Routine community liaison meeting
A9: July 2020 | C9: Liaison meeting planned was suspended due to the coronavirus pandemic
A16: List of events planned for next year
A17: Date | C17: Description
A18: TBC | C18: Liaison meetings continue to be suspended due to the Coronavirus pandemic. Information including emissions data is regularly updated on the FCC Eastcroft website
A25: If you wish to be involved in the public liaison programme, please contact info.eastcroft@fccenvironment.co.uk 0115 9869505 or visit https://eastcroft.fccenvironment.co.uk/contact-us/

Sheet Residue Quality
A1: =+'Cover Page'!$B$29 -> Annual Performance Report 2020 | E1: =+'Cover Page'!$B$33 -> Eastcroft EfW
A3: Residue Quality Monitoring Requirements
A5: Summary of monitoring undertaken and compliance
A6: Monitoring of residues for permit compliance was undertaken with full compliance to the residue limit recorded. No specific events were recorded during 2020.
A8: All 24 samples taken and analysed as per the ESA protocol were returned demonstrating that the Incinerator Bottom Ash should be classified as non-hazardous.
A11: Commentary on any specific events
A12: Date & Event | C12: Description
A23: Residue Quality Monitoring Results
A24: Parameter (unit) | C24: Limit | D24: Normal Operation
D25: Bottom ash | F25: APC Residues
A26: Loss on Ignition (average %) | C26: <5%
A27: Total Organic Carbon (average %) | C27: <3% | D27: 1.3
A28: No. of Assessments Undertaken | D28: 24 | F28: 4
A29: No. of Hazardous Results | D29: 0
A31: Comments :
A32: NB. 24 results relate to assessment against the WM3 criteria, 4 assessments were undertaken for compliance purposes.

Sheet Air (periodic)
A1: =+'Cover Page'!$B$29 -> Annual Performance Report 2020 | E1: =+'Cover Page'!$B$33 -> Eastcroft EfW
A3: Emissions to Air (periodically monitored)
A5: Summary of monitoring undertaken, standards used and compliance | L5: Notes:
A6: Emissions monitoring is undertaken on a bi-annual basis using independent MCERT accredited monitoring individuals. The frequency of testing and standards used for monitoring are those which are prescribed within the permit. | L6: Template may require adjustment for any bespoke monitoring requirements of permit.
A8: Results of emissions to air that are periodically monitored
A9: Substance | C9: Ref. Period | D9: Emission Limit Value | F9: Average | L9: User to add additional tables as necessary, depending on whether quarterly or bi-annual reporting is required for the compliance year
F10: A1 | G10: A2
A11: Hydrogen fluoride | C11: 1 hr | D11: 2 mg/m3 | F11: 0.66 | G11: 1.515
A12: Cd and Th and their compounds | C12: 6-8hrs | D12: 0.05 mg/m3 | F12: 0.003 | G12: 0.0007
A13: Hg and its compounds | C13: 6-8hrs | D13: 0.05 mg/m3 | F13: 0.0005 | G13: 0.00055
A14: Sb, As, Pb, Cr, Co, Cu, Mn, Ni, V and their compounds | C14: 6-8hrs | D14: 0.5 mg/m3 | F14: 0.014 | G14: 0.03
A15: Dioxins & Furans (I-TEQ) | C15: 6-8hrs | D15: 0.1 ng/m3 | F15: 0.000445 | G15: 0.000475
A16: PCBs (WHO-TEQ Humans / Mammals) | C16: 6-8hrs | D16: None set ng/m3 | F16: 3.35e-05 | G16: 3e-05
A17: PCBs (WHO-TEQ Fish) | C17: 6-8hrs | D17: None set ng/m3 | F17: 4e-06 | G17: 6.5e-06
A18: PCBs (WHO-TEQ Birds) | C18: 6-8hrs | D18: None set ng/m3 | F18: 0.000281 | G18: 0.00035
A19: Dioxins & Furans (WHO-TEQ Humans / Mammals) | C19: 6-8hrs | D19: None set ng/m3 | F19: 0.000425 | G19: 0.000465
A20: Dioxins & Furans (WHO-TEQ Fish) | C20: 6-8hrs | D20: None set ng/m3 | F20: 0.000455 | G20: 0.00047
A21: Dioxins & Furans (WHO-TEQ Birds) | C21: 6-8hrs | D21: None set ng/m3 | F21: 0.00062 | G21: 0.00113
A22: Anthanthrene | C22: 6-8hrs | D22: None set µg/m3 | F22: 0.00385 | G22: 0.0037
A23: Benzo(a)anthracene | C23: 6-8hrs | D23: None set µg/m3 | F23: 0.014 | G23: 0.01
A24: Benzo(a)pyrene | C24: 6-8hrs | D24: None set µg/m3 | F24: 0.006 | G24: 0.01
A25: Benzo(b)fluoranthene | C25: 6-8hrs | D25: None set µg/m3 | F25: 0.00385 | G25: 0.0048
A26: Benzo(b)naptho(2,1-d) thiophene | C26: 6-8hrs | D26: None set µg/m3 | F26: 0.00385 | G26: 0.00475
A27: Benzo(c)phenanthrene | C27: 6-8hrs | D27: None set µg/m3 | F27: 0.00485 | G27: 0.00525
A28: Benzo(ghi)perylene | C28: 6-8hrs | D28: None set µg/m3 | F28: 0.00385 | G28: 0.0037
A29: Benzo(k)fluoranthene | C29: 6-8hrs | D29: None set µg/m3 | F29: 0.00385 | G29: 0.0037
A30: Cholanthrene | C30: 6-8hrs | D30: None set µg/m3 | F30: 0.00485 | G30: 0.00575
A31: Chrysene | C31: 6-8hrs | D31: None set µg/m3 | F31: 0.04 | G31: 0.013
A32: Cyclopenta(cd)pyrene | C32: 6-8hrs | D32: None set µg/m3 | F32: 0.00485 | G32: 0.00725
A33: Dibenzo(ai)pyrene | C33: 6-8hrs | D33: None set µg/m3 | F33: 0.04585 | G33: 0.0038
A34: Dibenzo(ah)anthracene | C34: 6-8hrs | D34: None set µg/m3 | F34: 0.00585 | G34: 0.00555
A35: Fluoranthene | C35: 6-8hrs | D35: None set µg/m3 | F35: 0.125 | G35: 0.16
A36: Indeno(123-cd) pyrene | C36: 6-8hrs | D36: None set µg/m3 | F36: 0.00385 | G36: 0.0043
A37: Naphthalene | C37: 6-8hrs | D37: None set µg/m3 | F37: 0.885 | G37: 2.64
A38: N20 | C38: 1 hr | D38: None set | F38: 1.72 | G38: 1.5
A39: Comments :

Sheet Air (CEMS)
A1: =+'Cover Page'!$B$29 -> Annual Performance Report 2020 | I1: =+'Cover Page'!$B$33 -> Eastcroft EfW
A3: Emissions to Air (continously monitored)
L4: Notes:
A5: Summary of monitoring undertaken, standards used and compliance | L5: Template may require adjustment for any bespoke monitoring requirements of permit
A6: Continuous monitoring is undertaken in line with the permit requirements and the BS EN 14181 Standard | L6: Report to 2 decimal places, i.e. xx.xx%
A11: Results of emissions to air that are continuously monitored (maximum and average values for each line)
A12: Substance | B12: Reference Period | C12: Emission Limit Value | D12: A1 | F12: A2
D13: Max. | E13: Avg. | F13: Max. | G13: Avg.
A14: Oxides of nitrogen | B14: Daily mean | C14: 200 mg/m3 | D14: =NOx!O19 -> 195.4 | E14: =NOx!N19 -> 159.0166667 | F14: =NOx!O34 -> 183.1 | G14: =NOx!N34 -> 147.9666667
B15: ½ hourly mean | C15: 400 mg/m3 | D15: =NOx!M19 -> 345 | E15: =NOx!L19 -> 158.25 | F15: =NOx!M34 -> 333.5 | G15: =NOx!L34 -> 147.8666667
A16: Particulates | B16: Daily mean | C16: 10 mg/m3 | D16: =Particulates!O19 -> 1.6 | E16: =Particulates!N19 -> 0.475 | F16: =Particulates!O34 -> 0.8 | G16: =Particulates!N34 -> 0.2
B17: ½ hourly mean | C17: 30 mg/m3 | D17: =Particulates!M19 -> 12.9 | E17: =Particulates!L19 -> 0.525 | F17: =Particulates!M34 -> 2.4 | G17: =Particulates!L34 -> 0.2583333333
A18: Total Organic Carbon | B18: Daily mean | C18: 10 mg/m3 | D18: =TOC!O19 -> 0.8 | E18: =TOC!N19 -> 0.35 | F18: =TOC!O34 -> 1.6 | G18: =TOC!N34 -> 0.6916666667
B19: ½ hourly mean | C19: 20 mg/m3 | D19: =TOC!M19 -> 18.7 | E19: =TOC!L19 -> 0.3666666667 | F19: =TOC!M34 -> 20.8 | G19: =TOC!L34 -> 0.7166666667
A20: Hydrogen chloride | B20: Daily mean | C20: 10 mg/m3 | D20: =HCl!$O$19 -> 4.5 | E20: =HCl!$N$19 -> 2.625 | F20: =HCl!$O$34 -> 3.5 | G20: =HCl!$N$34 -> 2.216666667
B21: ½ hourly mean | C21: 60 mg/m3 | D21: =HCl!$M$19 -> 22.5 | E21: =HCl!$L$19 -> 2.641666667 | F21: =HCl!$M$34 -> 12.8 | G21: =HCl!$L$34 -> 2.225
A22: Sulphur dioxide | B22: Daily mean | C22: 50 mg/m3 | D22: ='SO2'!O19 -> 18.4 | E22: ='SO2'!N19 -> 6.458333333 | F22: ='SO2'!O34 -> 19.4 | G22: ='SO2'!N34 -> 6.591666667
B23: ½ hourly mean | C23: 200 mg/m3 | D23: ='SO2'!M19 -> 65 | E23: ='SO2'!L19 -> 6.516666667 | F23: ='SO2'!M34 -> 85.9 | G23: ='SO2'!L34 -> 6.616666667
A24: Carbon monoxide | B24: Daily mean | C24: 50 mg/m3 | D24: ='CO 95% 10 min'!Q19 -> 30.5 | E24: ='CO 95% 10 min'!P19 -> 10.75833333 | F24: ='CO 95% 10 min'!Q34 -> 31.2 | G24: ='CO 95% 10 min'!P34 -> 7.441666667
B25: 95%ile 10-min avg * | C25: 150 mg/m3 | D25: ='CO 95% 10 min'!M19 -> 28.69166667 | E25: ='CO 95% 10 min'!N19 -> 10.75833333 | F25: ='CO 95% 10 min'!M34 -> 22.7 | G25: ='CO 95% 10 min'!N34 -> 7.55
A26: Ammonia | B26: Daily mean | C26: No limit set | D26: ='NH3'!O19 -> 9.6 | E26: ='NH3'!N19 -> 0.85 | F26: ='NH3'!O34 -> 7.1 | G26: ='NH3'!N34 -> 0.95
A27: * = delete or amend as appropriate
A28: Comments :

Sheet HCl
A1: =+'Cover Page'!$B$29 -> Annual Performance Report 2020 | E1: =+'Cover Page'!$B$33 -> Eastcroft EfW
A3: Monitoring of Hydrogen Chloride emissions | D3: Whole Installation | G3: See Notes in Cell Q3 | J3: =+A3 -> Monitoring of Hydrogen Chloride emissions | N3: Per Combustion Line | Q3: Notes:
Q4: User to add logic to complete Whole installation, Table A5:G18. From the data in Per Combustion Line, Table J6:O79, subject to No. of lines installed
A5: mg/Nm3 | B5: 1/2 Hourly Reference Periods | E5: Daily Reference Periods
A6: =+'Cover Page'!C39 -> 2020 | B6: 1/2 hourly HCl ELV | C6: Monthly 1/2 hourly mean | D6: Highest 1/2 hourly maximum | E6: Daily HCl ELV | F6: Monthly daily mean | G6: Highest daily maximum | J6: =+A6 -> 2020 | K6: mg/Nm3 | L6: Monthly 1/2 hourly mean | M6: Monthly 1/2 hourly maximum | N6: Monthly daily mean | O6: Monthly daily maximum
A7: Jan | B7: 60 | C7: =AVERAGE(L7,L22) -> 2.2 | D7: =MAX(M7,M22) -> 22.5 | E7: 10 | F7: =AVERAGE(N7,N22) -> 2.2 | G7: =MAX(O7,O22) -> 3 | J7: A1 | K7: Jan | L7: 2.5 | M7: 22.5 | N7: 2.5 | O7: 3
A8: Feb | B8: 60 | C8: =AVERAGE(L8,L23) -> 1.9 | D8: =MAX(M8,M23) -> 7 | E8: 10 | F8: =AVERAGE(N8,N23) -> 1.9 | G8: =MAX(O8,O23) -> 2.6 | K8: Feb | L8: 2.1 | M8: 5.4 | N8: 2.1 | O8: 2.6
A9: Mar | B9: 60 | C9: 1.95 | D9: =MAX(M9,M24) -> 5.1 | E9: 10 | F9: 1.95 | G9: 2.7 | K9: Mar | L9: 2.1 | M9: 5.1 | N9: 2.1 | O9: 2.7 | Q9: Whole Installation table A5:G18:
A10: Apr | B10: 60 | C10: 2.75 | D10: 12.8 | E10: 10 | F10: 2.75 | G10: 3.4 | K10: Apr | L10: 3 | M10: 5.3 | N10: 3 | O10: 3.4 | Q10: Mean: for 1/2 hourly and daily periods calculate mean of values across all operational combustion lines for the month
A11: May | B11: 60 | C11: 2.6 | D11: 10.5 | E11: 10 | F11: 2.55 | G11: 3.5 | K11: May | L11: 2.7 | M11: 8.7 | N11: 2.6 | O11: 3.3
A12: Jun | B12: 60 | C12: 2.4 | D12: 6.3 | E12: 10 | F12: 2.4 | G12: 3.1 | K12: Jun | L12: 2.3 | M12: 5.2 | N12: 2.3 | O12: 3.1
A13: Jul | B13: 60 | C13: 2.6 | D13: 14.5 | E13: 10 | F13: 2.6 | G13: 4 | K13: Jul | L13: 2.8 | M13: 14.5 | N13: 2.8 | O13: 4 | Q13: Maximum: for 1/2 hourly and daily periods use the highest value across all operational combustion lines for the month
A14: Aug | B14: 60 | C14: 2.6 | D14: 6.1 | E14: 10 | F14: 2.6 | G14: 3.4 | K14: Aug | L14: 2.8 | M14: 5.1 | N14: 2.8 | O14: 3.4
A15: Sep | B15: 60 | C15: 2.2 | D15: 8 | E15: 10 | F15: 2.15 | G15: 2.8 | K15: Sep | L15: 2.4 | M15: 8 | N15: 2.4 | O15: 2.8
A16: Oct | B16: 60 | C16: 2.2 | D16: 4.5 | E16: 10 | F16: 2.15 | G16: 3.5 | K16: Oct | L16: 2.6 | M16: 4.5 | N16: 2.5 | O16: 3.5
A17: Nov | B17: 60 | C17: 3 | D17: 13.7 | E17: 10 | F17: 3 | G17: 4.5 | K17: Nov | L17: 3.3 | M17: 13.7 | N17: 3.3 | O17: 4.5
A18: Dec | B18: 60 | C18: 2.8 | D18: 4.4 | E18: 10 | F18: 2.8 | G18: 3.5 | K18: Dec | L18: 3.1 | M18: 4.3 | N18: 3.1 | O18: 3.5
K19: Annual | L19: =AVERAGE(L7:L18) -> 2.641666667 | M19: =MAX(M7:M18) -> 22.5 | N19: =AVERAGE(N7:N18) -> 2.625 | O19: =MAX(O7:O18) -> 4.5
J21: =+A6 -> 2020 | K21: mg/Nm3 | L21: Monthly 1/2 hourly mean | M21: Monthly 1/2 hourly maximum | N21: Monthly daily mean | O21: Monthly daily maximum
J22: A2 | K22: Jan | L22: 1.9 | M22: 5.7 | N22: 1.9 | O22: 2.2
K23: Feb | L23: 1.7 | M23: 7 | N23: 1.7 | O23: 2
K24: Mar | L24: 1.8 | M24: 3.3 | N24: 1.8 | O24: 2.3
K25: Apr | L25: 2.5 | M25: 12.8 | N25: 2.5 | O25: 3.1
K26: May | L26: 2.5 | M26: 10.5 | N26: 2.5 | O26: 3.5
K27: Jun | L27: 2.5 | M27: 6.3 | N27: 2.5 | O27: 2.9
K28: Jul | L28: 2.4 | M28: 4.4 | N28: 2.4 | O28: 2.8
K29: Aug | L29: 2.4 | M29: 6.1 | N29: 2.4 | O29: 3.1
K30: Sep | L30: 2 | M30: 3.7 | N30: 1.9 | O30: 2.5
K31: Oct | L31: 1.8 | M31: 3.6 | N31: 1.8 | O31: 2.5
K32: Nov | L32: 2.7 | M32: 6.1 | N32: 2.7 | O32: 3.1
K33: Dec | L33: 2.5 | M33: 4.4 | N33: 2.5 | O33: 3.1
K34: Annual | L34: =AVERAGE(L22:L33) -> 2.225 | M34: =MAX(M22:M33) -> 12.8 | N34: =AVERAGE(N22:N33) -> 2.216666667 | O34: =MAX(O22:O33) -> 3.5
J36: =+A6 -> 2020 | K36: mg/Nm3 | L36: Monthly 1/2 hourly mean | M36: Monthly 1/2 hourly maximum | N36: Monthly daily mean | O36: Monthly daily maximum
J37: A3 | K37: Jan
K38: Feb
K39: Mar
K40: Apr
K41: May
K42: Jun
K43: Jul
K44: Aug
K45: Sep
K46: Oct
K47: Nov
A48: Comments : | K48: Dec
K49: Annual | L49: =AVERAGE(L37:L48) ->  | M49: =MAX(M37:M48) -> 0 | N49: =AVERAGE(N37:N48) ->  | O49: =MAX(O37:O48) -> 0
J51: =+A6 -> 2020 | K51: mg/Nm3 | L51: Monthly 1/2 hourly mean | M51: Monthly 1/2 hourly maximum | N51: Monthly daily mean | O51: Monthly daily maximum
J52: A4 | K52: Jan
K53: Feb
K54: Mar
K55: Apr
K56: May
K57: Jun
K58: Jul
K59: Aug
K60: Sep
K61: Oct
K62: Nov
K63: Dec
K64: Annual | L64: =AVERAGE(L52:L63) ->  | M64: =MAX(M52:M63) -> 0 | N64: =AVERAGE(N52:N63) ->  | O64: =MAX(O52:O63) -> 0
J66: =+A6 -> 2020 | K66: mg/Nm3 | L66: Monthly 1/2 hourly mean | M66: Monthly 1/2 hourly maximum | N66: Monthly daily mean | O66: Monthly daily maximum
J67: A5 | K67: Jan
K68: Feb
K69: Mar
K70: Apr
K71: May
K72: Jun
K73: Jul
K74: Aug
K75: Sep
K76: Oct
K77: Nov
K78: Dec
K79: Annual | L79: =AVERAGE(L67:L78) ->  | M79: =MAX(M67:M78) -> 0 | N79: =AVERAGE(N67:N78) ->  | O79: =MAX(O67:O78) -> 0

Sheet SO2
A1: =+'Cover Page'!$B$29 -> Annual Performance Report 2020 | E1: =+'Cover Page'!$B$33 -> Eastcroft EfW
A3: Monitoring of Sulphur dioxide emissions | D3: Whole Installation | G3: See Notes in Cell Q3 | J3: =+A3 -> Monitoring of Sulphur dioxide emissions | N3: Per Combustion Line | Q3: Notes:
Q4: User to add logic to complete Whole installation, Table A5:G18. From the data in Per Combustion Line, Table J6:O79, subject to No. of lines installed
A5: mg/Nm3 | B5: 1/2 Hourly Reference Periods | E5: Daily Reference Periods
A6: =+'Cover Page'!C39 -> 2020 | B6: 1/2 hourly SO2 ELV | C6: Monthly 1/2 hourly mean | D6: Highest 1/2 hourly maximum | E6: Daily SO2 ELV | F6: Monthly daily mean | G6: Highest daily maximum | J6: =+A6 -> 2020 | K6: mg/Nm3 | L6: Monthly 1/2 hourly mean | M6: Monthly 1/2 hourly maximum | N6: Monthly daily mean | O6: Monthly daily maximum
A7: Jan | B7: 200 | C7: =AVERAGE(L7,L22) -> 3.4 | D7: =MAX(M7,M22) -> 58.5 | E7: 50 | F7: =AVERAGE(N7,N22) -> 3.35 | G7: =MAX(O7,O22) -> 7.5 | J7: A1 | K7: Jan | L7: 3.3 | M7: 58.5 | N7: 3.2 | O7: 5
A8: Feb | B8: 200 | C8: =AVERAGE(L8,L23) -> 6.55 | D8: =MAX(M8,M23) -> 72 | E8: 50 | F8: =AVERAGE(N8,N23) -> 6.5 | G8: =MAX(O8,O23) -> 13.5 | K8: Feb | L8: 4.7 | M8: 20 | N8: 4.6 | O8: 8.3
A9: Mar | B9: 200 | C9: 8.7 | D9: 67.5 | E9: 50 | F9: 8.65 | G9: 14.7 | K9: Mar | L9: 5.4 | M9: 63 | N9: 5.4 | O9: 8.5 | Q9: Whole Installation table A5:G18:
A10: Apr | B10: 200 | C10: 6.1 | D10: 50.8 | E10: 50 | F10: 6.1 | G10: 14.9 | K10: Apr | L10: 4.8 | M10: 19 | N10: 4.8 | O10: 7.6 | Q10: Mean: for 1/2 hourly and daily periods calculate mean of values across all operational combustion lines for the month
A11: May | B11: 200 | C11: 4.75 | D11: 52.4 | E11: 50 | F11: 4.75 | G11: 11.1 | K11: May | L11: 4.2 | M11: 32 | N11: 4.2 | O11: 7.3
A12: Jun | B12: 200 | C12: 6.35 | D12: 47.8 | E12: 50 | F12: 6.35 | G12: 14.6 | K12: Jun | L12: 3.9 | M12: 28.8 | N12: 3.8 | O12: 8.3
A13: Jul | B13: 200 | C13: 10.05 | D13: 85.9 | E13: 50 | F13: 9.95 | G13: 19.4 | K13: Jul | L13: 10.1 | M13: 52.7 | N13: 10 | O13: 18.4 | Q13: Maximum: for 1/2 hourly and daily periods use the highest value across all operational combustion lines for the month
A14: Aug | B14: 200 | C14: 5.1 | D14: 65 | E14: 50 | F14: 5 | G14: 9.8 | K14: Aug | L14: 6.6 | M14: 65 | N14: 6.4 | O14: 9.8
A15: Sep | B15: 200 | C15: 3.9 | D15: 19.4 | E15: 50 | F15: 3.85 | G15: 8 | K15: Sep | L15: 5 | M15: 19.4 | N15: 5 | O15: 8
A16: Oct | B16: 200 | C16: 6.85 | D16: 40.5 | E16: 50 | F16: 6.85 | G16: 15 | K16: Oct | L16: 8.7 | M16: 26.3 | N16: 8.7 | O16: 15
A17: Nov | B17: 200 | C17: 8.35 | D17: 31.7 | E17: 50 | F17: 8.3 | G17: 13.1 | K17: Nov | L17: 10.8 | M17: 31.7 | N17: 10.8 | O17: 13.1
A18: Dec | B18: 200 | C18: 8.7 | D18: 31.5 | E18: 50 | F18: 8.65 | G18: 13 | K18: Dec | L18: 10.7 | M18: 31.5 | N18: 10.6 | O18: 13
K19: Annual | L19: =AVERAGE(L7:L18) -> 6.516666667 | M19: =MAX(M7:M18) -> 65 | N19: =AVERAGE(N7:N18) -> 6.458333333 | O19: =MAX(O7:O18) -> 18.4
J21: =+A6 -> 2020 | K21: mg/Nm3 | L21: Monthly 1/2 hourly mean | M21: Monthly 1/2 hourly maximum | N21: Monthly daily mean | O21: Monthly daily maximum
J22: A2 | K22: Jan | L22: 3.5 | M22: 50.6 | N22: 3.5 | O22: 7.5
K23: Feb | L23: 8.4 | M23: 72 | N23: 8.4 | O23: 13.5
K24: Mar | L24: 12 | M24: 67.5 | N24: 11.9 | O24: 14.7
K25: Apr | L25: 7.4 | M25: 50.8 | N25: 7.4 | O25: 14.9
K26: May | L26: 5.3 | M26: 52.4 | N26: 5.3 | O26: 11.1
K27: Jun | L27: 8.8 | M27: 47.8 | N27: 8.9 | O27: 14.6
K28: Jul | L28: 10 | M28: 85.9 | N28: 9.9 | O28: 19.4
K29: Aug | L29: 3.6 | M29: 58 | N29: 3.6 | O29: 6.8
K30: Sep | L30: 2.8 | M30: 14.4 | N30: 2.7 | O30: 6.3
K31: Oct | L31: 5 | M31: 40.5 | N31: 5 | O31: 10
K32: Nov | L32: 5.9 | M32: 23.3 | N32: 5.8 | O32: 10.2
K33: Dec | L33: 6.7 | M33: 26.2 | N33: 6.7 | O33: 9.4
K34: Annual | L34: =AVERAGE(L22:L33) -> 6.616666667 | M34: =MAX(M22:M33) -> 85.9 | N34: =AVERAGE(N22:N33) -> 6.591666667 | O34: =MAX(O22:O33) -> 19.4
J36: =+A6 -> 2020 | K36: mg/Nm3 | L36: Monthly 1/2 hourly mean | M36: Monthly 1/2 hourly maximum | N36: Monthly daily mean | O36: Monthly daily maximum
J37: A3 | K37: Jan
K38: Feb
K39: Mar
K40: Apr
K41: May
K42: Jun
K43: Jul
K44: Aug
K45: Sep
K46: Oct
K47: Nov
A48: Comments : | K48: Dec
K49: Annual | L49: =AVERAGE(L37:L48) ->  | M49: =MAX(M37:M48) -> 0 | N49: =AVERAGE(N37:N48) ->  | O49: =MAX(O37:O48) -> 0
J51: =+A6 -> 2020 | K51: mg/Nm3 | L51: Monthly 1/2 hourly mean | M51: Monthly 1/2 hourly maximum | N51: Monthly daily mean | O51: Monthly daily maximum
J52: A4 | K52: Jan
K53: Feb
K54: Mar
K55: Apr
K56: May
K57: Jun
K58: Jul
K59: Aug
K60: Sep
K61: Oct
K62: Nov
K63: Dec
K64: Annual | L64: =AVERAGE(L52:L63) ->  | M64: =MAX(M52:M63) -> 0 | N64: =AVERAGE(N52:N63) ->  | O64: =MAX(O52:O63) -> 0
J66: =+A6 -> 2020 | K66: mg/Nm3 | L66: Monthly 1/2 hourly mean | M66: Monthly 1/2 hourly maximum | N66: Monthly daily mean | O66: Monthly daily maximum
J67: A5 | K67: Jan
K68: Feb
K69: Mar
K70: Apr
K71: May
K72: Jun
K73: Jul
K74: Aug
K75: Sep
K76: Oct
K77: Nov
K78: Dec
K79: Annual | L79: =AVERAGE(L67:L78) ->  | M79: =MAX(M67:M78) -> 0 | N79: =AVERAGE(N67:N78) ->  | O79: =MAX(O67:O78) -> 0

Sheet NOx
A1: =+'Cover Page'!$B$29 -> Annual Performance Report 2020 | E1: =+'Cover Page'!$B$33 -> Eastcroft EfW
A3: Monitoring of Oxides of Nitrogen emissions | D3: Whole Installation | G3: See Notes in Cell Q3 | J3: =+A3 -> Monitoring of Oxides of Nitrogen emissions | N3: Per Combustion Line | Q3: Notes:
Q4: User to add logic to complete Whole installation, Table A5:G18. From the data in Per Combustion Line, Table J6:O79, subject to No. of lines installed
A5: mg/Nm3 | B5: 1/2 Hourly Reference Periods | E5: Daily Reference Periods
A6: =+'Cover Page'!C39 -> 2020 | B6: 1/2 hourly NOx ELV | C6: Monthly 1/2 hourly mean | D6: Highest 1/2 hourly maximum | E6: Daily NOx ELV | F6: Monthly daily mean | G6: Highest daily maximum | J6: =+A6 -> 2020 | K6: mg/Nm3 | L6: Monthly 1/2 hourly mean | M6: Monthly 1/2 hourly maximum | N6: Monthly daily mean | O6: Monthly daily maximum
A7: Jan | B7: 400 | C7: =AVERAGE(L7,L22) -> 143.95 | D7: =MAX(M7,M22) -> 209.1 | E7: 200 | F7: =AVERAGE(N7,N22) -> 143.95 | G7: =MAX(O7,O22) -> 176.5 | J7: A1 | K7: Jan | L7: 157.1 | M7: 209.1 | N7: 157.1 | O7: 176.5
A8: Feb | B8: 400 | C8: =AVERAGE(L8,L23) -> 141.2 | D8: =MAX(M8,M23) -> 209.2 | E8: 200 | F8: =AVERAGE(N8,N23) -> 141.2 | G8: =MAX(O8,O23) -> 163.6 | K8: Feb | L8: 149.7 | M8: 209.2 | N8: 149.5 | O8: 163.6
A9: Mar | B9: 400 | C9: 142.95 | D9: 305.4 | E9: 200 | F9: 143.15 | G9: 184.6 | K9: Mar | L9: 151 | M9: 305.4 | N9: 151.4 | O9: 184.6 | Q9: Whole Installation table A5:G18:
A10: Apr | B10: 400 | C10: 156.05 | D10: 211.3 | E10: 200 | F10: 156.05 | G10: 180.3 | K10: Apr | L10: 163.9 | M10: 205.1 | N10: 163.9 | O10: 180.3 | Q10: Mean: for 1/2 hourly and daily periods calculate mean of values across all operational combustion lines for the month
A11: May | B11: 400 | C11: 150.1 | D11: 232.9 | E11: 200 | F11: 150.2 | G11: 177.5 | K11: May | L11: 154.1 | M11: 232.9 | N11: 154.3 | O11: 177.5
A12: Jun | B12: 400 | C12: 140.1 | D12: 345 | E12: 200 | F12: 145.1 | G12: 155.8 | K12: Jun | L12: 134.2 | M12: 345 | N12: 143.2 | O12: 155.8
A13: Jul | B13: 400 | C13: 165.8 | D13: 333.5 | E13: 200 | F13: 165.65 | G13: 188.8 | K13: Jul | L13: 172.7 | M13: 268.3 | N13: 172.6 | O13: 188.8 | Q13: Maximum: for 1/2 hourly and daily periods use the highest value across all operational combustion lines for the month
A14: Aug | B14: 400 | C14: 164.65 | D14: 262.8 | E14: 200 | F14: 164.9 | G14: 195.4 | K14: Aug | L14: 169.2 | M14: 262.8 | N14: 169.2 | O14: 195.4
A15: Sep | B15: 400 | C15: 166.05 | D15: 267.7 | E15: 200 | F15: 166.05 | G15: 175.3 | K15: Sep | L15: 167.5 | M15: 225 | N15: 167.5 | O15: 175.3
A16: Oct | B16: 400 | C16: 159.4 | D16: 261.8 | E16: 200 | F16: 159.35 | G16: 178.1 | K16: Oct | L16: 165.1 | M16: 261.8 | N16: 165.1 | O16: 178.1
A17: Nov | B17: 400 | C17: 154.15 | D17: 214.9 | E17: 200 | F17: 154.05 | G17: 172.9 | K17: Nov | L17: 158.1 | M17: 208.4 | N17: 158 | O17: 172.9
A18: Dec | B18: 400 | C18: 152.3 | D18: 222.7 | E18: 200 | F18: 152.25 | G18: 169.4 | K18: Dec | L18: 156.4 | M18: 214.6 | N18: 156.4 | O18: 169.4
K19: Annual | L19: =AVERAGE(L7:L18) -> 158.25 | M19: =MAX(M7:M18) -> 345 | N19: =AVERAGE(N7:N18) -> 159.0166667 | O19: =MAX(O7:O18) -> 195.4
J21: =+A6 -> 2020 | K21: mg/Nm3 | L21: Monthly 1/2 hourly mean | M21: Monthly 1/2 hourly maximum | N21: Monthly daily mean | O21: Monthly daily maximum
J22: A2 | K22: Jan | L22: 130.8 | M22: 161.8 | N22: 130.8 | O22: 146.1
K23: Feb | L23: 132.7 | M23: 174.1 | N23: 132.9 | O23: 142.2
K24: Mar | L24: 134.9 | M24: 176.4 | N24: 134.9 | O24: 153.1
K25: Apr | L25: 148.2 | M25: 211.3 | N25: 148.2 | O25: 163.3
K26: May | L26: 146.1 | M26: 211.3 | N26: 146.1 | O26: 165.5
K27: Jun | L27: 146 | M27: 185.8 | N27: 147 | O27: 152.7
K28: Jul | L28: 158.9 | M28: 333.5 | N28: 158.7 | O28: 183.1
K29: Aug | L29: 160.1 | M29: 223.6 | N29: 160.6 | O29: 177.3
K30: Sep | L30: 164.6 | M30: 267.7 | N30: 164.6 | O30: 173.7
K31: Oct | L31: 153.7 | M31: 227.5 | N31: 153.6 | O31: 171.9
K32: Nov | L32: 150.2 | M32: 214.9 | N32: 150.1 | O32: 160.5
K33: Dec | L33: 148.2 | M33: 222.7 | N33: 148.1 | O33: 167.4
K34: Annual | L34: =AVERAGE(L22:L33) -> 147.8666667 | M34: =MAX(M22:M33) -> 333.5 | N34: =AVERAGE(N22:N33) -> 147.9666667 | O34: =MAX(O22:O33) -> 183.1
J36: =+A6 -> 2020 | K36: mg/Nm3 | L36: Monthly 1/2 hourly mean | M36: Monthly 1/2 hourly maximum | N36: Monthly daily mean | O36: Monthly daily maximum
J37: A3 | K37: Jan
K38: Feb
K39: Mar
K40: Apr
K41: May
K42: Jun
K43: Jul
K44: Aug
K45: Sep
K46: Oct
K47: Nov
A48: Comments : | K48: Dec
K49: Annual | L49: =AVERAGE(L37:L48) ->  | M49: =MAX(M37:M48) -> 0 | N49: =AVERAGE(N37:N48) ->  | O49: =MAX(O37:O48) -> 0
J51: =+A6 -> 2020 | K51: mg/Nm3 | L51: Monthly 1/2 hourly mean | M51: Monthly 1/2 hourly maximum | N51: Monthly daily mean | O51: Monthly daily maximum
J52: A4 | K52: Jan
K53: Feb
K54: Mar
K55: Apr
K56: May
K57: Jun
K58: Jul
K59: Aug
K60: Sep
K61: Oct
K62: Nov
K63: Dec
K64: Annual | L64: =AVERAGE(L52:L63) ->  | M64: =MAX(M52:M63) -> 0 | N64: =AVERAGE(N52:N63) ->  | O64: =MAX(O52:O63) -> 0
J66: =+A6 -> 2020 | K66: mg/Nm3 | L66: Monthly 1/2 hourly mean | M66: Monthly 1/2 hourly maximum | N66: Monthly daily mean | O66: Monthly daily maximum
J67: A5 | K67: Jan
K68: Feb
K69: Mar
K70: Apr
K71: May
K72: Jun
K73: Jul
K74: Aug
K75: Sep
K76: Oct
K77: Nov
K78: Dec
K79: Annual | L79: =AVERAGE(L67:L78) ->  | M79: =MAX(M67:M78) -> 0 | N79: =AVERAGE(N67:N78) ->  | O79: =MAX(O67:O78) -> 0

Sheet TOC
A1: =+'Cover Page'!$B$29 -> Annual Performance Report 2020 | E1: =+'Cover Page'!$B$33 -> Eastcroft EfW
A3: Monitoring of Total organic carbon emissions | D3: Whole Installation | G3: See Notes in Cell Q3 | J3: =+A3 -> Monitoring of Total organic carbon emissions | N3: Per Combustion Line | Q3: Notes:
Q4: User to add logic to complete Whole installation, Table A5:G18. From the data in Per Combustion Line, Table J6:O79, subject to No. of lines installed
A5: mg/Nm3 | B5: 1/2 Hourly Reference Periods | E5: Daily Reference Periods
A6: =+'Cover Page'!C39 -> 2020 | B6: 1/2 hourly TOC ELV | C6: Monthly 1/2 hourly mean | D6: Highest 1/2 hourly maximum | E6: Daily TOC ELV | F6: Monthly daily mean | G6: Highest daily maximum | J6: =+A6 -> 2020 | K6: mg/Nm3 | L6: Monthly 1/2 hourly mean | M6: Monthly 1/2 hourly maximum | N6: Monthly daily mean | O6: Monthly daily maximum
A7: Jan | B7: 20 | C7: =AVERAGE(L7,L22) -> 0.5 | D7: =MAX(M7,M22) -> 3.6 | E7: 10 | F7: =AVERAGE(N7,N22) -> 0.45 | G7: =MAX(O7,O22) -> 0.8 | J7: A1 | K7: Jan | L7: 0.3 | M7: 3.6 | N7: 0.3 | O7: 0.4
A8: Feb | B8: 20 | C8: =AVERAGE(L8,L23) -> 0.55 | D8: =MAX(M8,M23) -> 20.8 | E8: 10 | F8: =AVERAGE(N8,N23) -> 0.5 | G8: =MAX(O8,O23) -> 1 | K8: Feb | L8: 0.4 | M8: 6.5 | N8: 0.3 | O8: 0.4
A9: Mar | B9: 20 | C9: 0.55 | D9: 7.2 | E9: 10 | F9: 0.55 | G9: 1 | K9: Mar | L9: 0.3 | M9: 4.6 | N9: 0.3 | O9: 0.6 | Q9: Whole Installation table A5:G18:
A10: Apr | B10: 20 | C10: 0.55 | D10: 18.7 | E10: 10 | F10: 0.55 | G10: 0.9 | K10: Apr | L10: 0.3 | M10: 18.7 | N10: 0.3 | O10: 0.7 | Q10: Mean: for 1/2 hourly and daily periods calculate mean of values across all operational combustion lines for the month
A11: May | B11: 20 | C11: 0.6 | D11: 12.1 | E11: 10 | F11: 0.6 | G11: 1.6 | K11: May | L11: 0.3 | M11: 12.1 | N11: 0.3 | O11: 0.7
A12: Jun | B12: 20 | C12: 0.5 | D12: 3.7 | E12: 10 | F12: 0.45 | G12: 1 | K12: Jun | L12: 0.2 | M12: 3.7 | N12: 0.2 | O12: 0.4
A13: Jul | B13: 20 | C13: 0.5 | D13: 6.8 | E13: 10 | F13: 0.5 | G13: 0.9 | K13: Jul | L13: 0.4 | M13: 6.8 | N13: 0.4 | O13: 0.6 | Q13: Maximum: for 1/2 hourly and daily periods use the highest value across all operational combustion lines for the month
A14: Aug | B14: 20 | C14: 0.55 | D14: 10.7 | E14: 10 | F14: 0.5 | G14: 1.1 | K14: Aug | L14: 0.4 | M14: 10.7 | N14: 0.4 | O14: 0.6
A15: Sep | B15: 20 | C15: 0.4 | D15: 17.3 | E15: 10 | F15: 0.4 | G15: 0.9 | K15: Sep | L15: 0.3 | M15: 7.9 | N15: 0.3 | O15: 0.6
A16: Oct | B16: 20 | C16: 0.5 | D16: 10.2 | E16: 10 | F16: 0.5 | G16: 0.9 | K16: Oct | L16: 0.4 | M16: 6 | N16: 0.4 | O16: 0.5
A17: Nov | B17: 20 | C17: 0.6 | D17: 9.4 | E17: 10 | F17: 0.6 | G17: 1 | K17: Nov | L17: 0.5 | M17: 2 | N17: 0.5 | O17: 0.7
A18: Dec | B18: 20 | C18: 0.7 | D18: 15.3 | E18: 10 | F18: 0.65 | G18: 1 | K18: Dec | L18: 0.6 | M18: 15.3 | N18: 0.5 | O18: 0.8
K19: Annual | L19: =AVERAGE(L7:L18) -> 0.3666666667 | M19: =MAX(M7:M18) -> 18.7 | N19: =AVERAGE(N7:N18) -> 0.35 | O19: =MAX(O7:O18) -> 0.8
J21: =+A6 -> 2020 | K21: mg/Nm3 | L21: Monthly 1/2 hourly mean | M21: Monthly 1/2 hourly maximum | N21: Monthly daily mean | O21: Monthly daily maximum
J22: A2 | K22: Jan | L22: 0.7 | M22: 1.4 | N22: 0.6 | O22: 0.8
K23: Feb | L23: 0.7 | M23: 20.8 | N23: 0.7 | O23: 1
K24: Mar | L24: 0.8 | M24: 7.2 | N24: 0.8 | O24: 1
K25: Apr | L25: 0.8 | M25: 6.7 | N25: 0.8 | O25: 0.9
K26: May | L26: 0.9 | M26: 4.2 | N26: 0.9 | O26: 1.6
K27: Jun | L27: 0.8 | M27: 2.2 | N27: 0.7 | O27: 1
K28: Jul | L28: 0.6 | M28: 1.3 | N28: 0.6 | O28: 0.9
K29: Aug | L29: 0.7 | M29: 3.6 | N29: 0.6 | O29: 1.1
K30: Sep | L30: 0.5 | M30: 17.3 | N30: 0.5 | O30: 0.9
K31: Oct | L31: 0.6 | M31: 10.2 | N31: 0.6 | O31: 0.9
K32: Nov | L32: 0.7 | M32: 9.4 | N32: 0.7 | O32: 1
K33: Dec | L33: 0.8 | M33: 3.6 | N33: 0.8 | O33: 1
K34: Annual | L34: =AVERAGE(L22:L33) -> 0.7166666667 | M34: =MAX(M22:M33) -> 20.8 | N34: =AVERAGE(N22:N33) -> 0.6916666667 | O34: =MAX(O22:O33) -> 1.6
J36: =+A6 -> 2020 | K36: mg/Nm3 | L36: Monthly 1/2 hourly mean | M36: Monthly 1/2 hourly maximum | N36: Monthly daily mean | O36: Monthly daily maximum
J37: A3 | K37: Jan
K38: Feb
K39: Mar
K40: Apr
K41: May
K42: Jun
K43: Jul
K44: Aug
K45: Sep
K46: Oct
K47: Nov
A48: Comments : | K48: Dec
K49: Annual | L49: =AVERAGE(L37:L48) ->  | M49: =MAX(M37:M48) -> 0 | N49: =AVERAGE(N37:N48) ->  | O49: =MAX(O37:O48) -> 0
J51: =+A6 -> 2020 | K51: mg/Nm3 | L51: Monthly 1/2 hourly mean | M51: Monthly 1/2 hourly maximum | N51: Monthly daily mean | O51: Monthly daily maximum
J52: A4 | K52: Jan
K53: Feb
K54: Mar
K55: Apr
K56: May
K57: Jun
K58: Jul
K59: Aug
K60: Sep
K61: Oct
K62: Nov
K63: Dec
K64: Annual | L64: =AVERAGE(L52:L63) ->  | M64: =MAX(M52:M63) -> 0 | N64: =AVERAGE(N52:N63) ->  | O64: =MAX(O52:O63) -> 0
J66: =+A6 -> 2020 | K66: mg/Nm3 | L66: Monthly 1/2 hourly mean | M66: Monthly 1/2 hourly maximum | N66: Monthly daily mean | O66: Monthly daily maximum
J67: A5 | K67: Jan
K68: Feb
K69: Mar
K70: Apr
K71: May
K72: Jun
K73: Jul
K74: Aug
K75: Sep
K76: Oct
K77: Nov
K78: Dec
K79: Annual | L79: =AVERAGE(L67:L78) ->  | M79: =MAX(M67:M78) -> 0 | N79: =AVERAGE(N67:N78) ->  | O79: =MAX(O67:O78) -> 0

Sheet Particulates
A1: =+'Cover Page'!$B$29 -> Annual Performance Report 2020 | E1: =+'Cover Page'!$B$33 -> Eastcroft EfW
A3: Monitoring of Particulate matter emissions | D3: Whole Installation | G3: See Notes in Cell Q3 | J3: =+A3 -> Monitoring of Particulate matter emissions | N3: Per Combustion Line | Q3: Notes:
Q4: User to add logic to complete Whole installation, Table A5:G18. From the data in Per Combustion Line, Table J6:O79, subject to No. of lines installed
A5: mg/Nm3 | B5: 1/2 Hourly Reference Periods | E5: Daily Reference Periods
A6: =+'Cover Page'!C39 -> 2020 | B6: 1/2 hourly PM ELV | C6: Monthly 1/2 hourly mean | D6: Highest 1/2 hourly maximum | E6: Daily PM ELV | F6: Monthly daily mean | G6: Highest daily maximum | J6: =+A6 -> 2020 | K6: mg/Nm3 | L6: Monthly 1/2 hourly mean | M6: Monthly 1/2 hourly maximum | N6: Monthly daily mean | O6: Monthly daily maximum
A7: Jan | B7: 30 | C7: =AVERAGE(L7,L22) -> 0.35 | D7: =MAX(M7,M22) -> 1.7 | E7: 10 | F7: =AVERAGE(N7,N22) -> 0.35 | G7: =MAX(O7,O22) -> 0.7 | J7: A1 | K7: Jan | L7: 0.5 | M7: 1.7 | N7: 0.5 | O7: 0.7
A8: Feb | B8: 30 | C8: =AVERAGE(L8,L23) -> 0.4 | D8: =MAX(M8,M23) -> 4.4 | E8: 10 | F8: =AVERAGE(N8,N23) -> 0.4 | G8: =MAX(O8,O23) -> 1.4 | K8: Feb | L8: 0.6 | M8: 4.4 | N8: 0.6 | O8: 1.4
A9: Mar | B9: 30 | C9: 0.35 | D9: 1.2 | E9: 10 | F9: 0.35 | G9: 0.6 | K9: Mar | L9: 0.5 | M9: 1.2 | N9: 0.5 | O9: 0.6 | Q9: Whole Installation table A5:G18:
A10: Apr | B10: 30 | C10: 0.45 | D10: 1.1 | E10: 10 | F10: 0.4 | G10: 0.7 | K10: Apr | L10: 0.6 | M10: 1 | N10: 0.6 | O10: 0.7 | Q10: Mean: for 1/2 hourly and daily periods calculate mean of values across all operational combustion lines for the month
A11: May | B11: 30 | C11: 0.4 | D11: 0.8 | E11: 10 | F11: 0.3 | G11: 0.5 | K11: May | L11: 0.5 | M11: 0.8 | N11: 0.4 | O11: 0.5
A12: Jun | B12: 30 | C12: 0.4 | D12: 12.9 | E12: 10 | F12: 0.3 | G12: 1.3 | K12: Jun | L12: 0.5 | M12: 12.9 | N12: 0.4 | O12: 1.3
A13: Jul | B13: 30 | C13: 0.25 | D13: 2.3 | E13: 10 | F13: 0.2 | G13: 0.8 | K13: Jul | L13: 0.3 | M13: 0.7 | N13: 0.2 | O13: 0.3 | Q13: Maximum: for 1/2 hourly and daily periods use the highest value across all operational combustion lines for the month
A14: Aug | B14: 30 | C14: 0.4 | D14: 1.1 | E14: 10 | F14: 0.35 | G14: 0.7 | K14: Aug | L14: 0.6 | M14: 1.1 | N14: 0.5 | O14: 0.7
A15: Sep | B15: 30 | C15: 0.55 | D15: 2.5 | E15: 10 | F15: 0.5 | G15: 1.5 | K15: Sep | L15: 0.8 | M15: 2.5 | N15: 0.8 | O15: 1.5
A16: Oct | B16: 30 | C16: 0.55 | D16: 2.3 | E16: 10 | F16: 0.45 | G16: 1.6 | K16: Oct | L16: 0.8 | M16: 2.3 | N16: 0.7 | O16: 1.6
A17: Nov | B17: 30 | C17: 0.3 | D17: 2 | E17: 10 | F17: 0.2 | G17: 0.4 | K17: Nov | L17: 0.3 | M17: 2 | N17: 0.2 | O17: 0.4
A18: Dec | B18: 30 | C18: 0.3 | D18: 5.6 | E18: 10 | F18: 0.25 | G18: 1.1 | K18: Dec | L18: 0.3 | M18: 5.6 | N18: 0.3 | O18: 1.1
K19: Annual | L19: =AVERAGE(L7:L18) -> 0.525 | M19: =MAX(M7:M18) -> 12.9 | N19: =AVERAGE(N7:N18) -> 0.475 | O19: =MAX(O7:O18) -> 1.6
J21: =+A6 -> 2020 | K21: mg/Nm3 | L21: Monthly 1/2 hourly mean | M21: Monthly 1/2 hourly maximum | N21: Monthly daily mean | O21: Monthly daily maximum
J22: A2 | K22: Jan | L22: 0.2 | M22: 0.4 | N22: 0.2 | O22: 0.2
K23: Feb | L23: 0.2 | M23: 2.4 | N23: 0.2 | O23: 0.3
K24: Mar | L24: 0.2 | M24: 1 | N24: 0.2 | O24: 0.4
K25: Apr | L25: 0.3 | M25: 1.1 | N25: 0.2 | O25: 0.4
K26: May | L26: 0.3 | M26: 0.4 | N26: 0.2 | O26: 0.3
K27: Jun | L27: 0.3 | M27: 0.4 | N27: 0.2 | O27: 0.3
K28: Jul | L28: 0.2 | M28: 2.3 | N28: 0.2 | O28: 0.8
K29: Aug | L29: 0.2 | M29: 0.6 | N29: 0.2 | O29: 0.3
K30: Sep | L30: 0.3 | M30: 0.6 | N30: 0.2 | O30: 0.3
K31: Oct | L31: 0.3 | M31: 0.8 | N31: 0.2 | O31: 0.3
K32: Nov | L32: 0.3 | M32: 0.5 | N32: 0.2 | O32: 0.3
K33: Dec | L33: 0.3 | M33: 0.5 | N33: 0.2 | O33: 0.3
K34: Annual | L34: =AVERAGE(L22:L33) -> 0.2583333333 | M34: =MAX(M22:M33) -> 2.4 | N34: =AVERAGE(N22:N33) -> 0.2 | O34: =MAX(O22:O33) -> 0.8
J36: =+A6 -> 2020 | K36: mg/Nm3 | L36: Monthly 1/2 hourly mean | M36: Monthly 1/2 hourly maximum | N36: Monthly daily mean | O36: Monthly daily maximum
J37: A3 | K37: Jan
K38: Feb
K39: Mar
K40: Apr
K41: May
K42: Jun
K43: Jul
K44: Aug
K45: Sep
K46: Oct
K47: Nov
A48: Comments : | K48: Dec
K49: Annual | L49: =AVERAGE(L37:L48) ->  | M49: =MAX(M37:M48) -> 0 | N49: =AVERAGE(N37:N48) ->  | O49: =MAX(O37:O48) -> 0
J51: =+A6 -> 2020 | K51: mg/Nm3 | L51: Monthly 1/2 hourly mean | M51: Monthly 1/2 hourly maximum | N51: Monthly daily mean | O51: Monthly daily maximum
J52: A4 | K52: Jan
K53: Feb
K54: Mar
K55: Apr
K56: May
K57: Jun
K58: Jul
K59: Aug
K60: Sep
K61: Oct
K62: Nov
K63: Dec
K64: Annual | L64: =AVERAGE(L52:L63) ->  | M64: =MAX(M52:M63) -> 0 | N64: =AVERAGE(N52:N63) ->  | O64: =MAX(O52:O63) -> 0
J66: =+A6 -> 2020 | K66: mg/Nm3 | L66: Monthly 1/2 hourly mean | M66: Monthly 1/2 hourly maximum | N66: Monthly daily mean | O66: Monthly daily maximum
J67: A5 | K67: Jan
K68: Feb
K69: Mar
K70: Apr
K71: May
K72: Jun
K73: Jul
K74: Aug
K75: Sep
K76: Oct
K77: Nov
K78: Dec
K79: Annual | L79: =AVERAGE(L67:L78) ->  | M79: =MAX(M67:M78) -> 0 | N79: =AVERAGE(N67:N78) ->  | O79: =MAX(O67:O78) -> 0

Sheet CO 95% 10 min
A1: =+'Cover Page'!$B$29 -> Annual Performance Report 2020 | E1: =+'Cover Page'!$B$33 -> Eastcroft EfW
A3: Monitoring of Carbon Monoxide (10-minute avg) | E3: Whole Installation | H3: See Notes in Cell S3 | J3: =+A3 -> Monitoring of Carbon Monoxide (10-minute avg) | O3: Per Combustion Line | Q3: Notes: | S3: Notes:
S4: User to add logic to complete Whole installation, Table A5:H18. From the data in Per Combustion Line, Table K6:Q79, subject to No. of lines installed
A5: mg/Nm3 | B5: 10-minute Reference Periods | F5: Daily Reference Periods
A6: =+'Cover Page'!C39 -> 2020 | B6: 95%ile 10-min avg CO ELV | C6: 95%ile 10-min avg maximum | D6: Monthly CO 10-min avg mean | E6: 10-min avg maximum | F6: Daily CO ELV | G6: Monthly daily mean | H6: Highest daily maximum | K6: =+A6 -> 2020 | L6: mg/Nm3 | M6: 95%ile 10-min avg maximum | N6: Monthly CO 10-min avg mean | O6: 10-min avg maximum | P6: Monthly daily mean | Q6: Monthly daily maximum
A7: Jan | B7: 150 | C7: =MAX(M7,M22) -> 18 | D7: =AVERAGE(N7,N22) -> 7.65 | E7: =MAX(O7,O22) -> 603.5 | F7: 50 | G7: =AVERAGE(P7,P22) -> 7.6 | H7: =MAX(Q7,Q22) -> 12.4 | K7: A1 | L7: Jan | M7: 18 | N7: 9.2 | O7: 603.5 | P7: 9.2 | Q7: 12.4
A8: Feb | B8: =+B7 -> 150 | C8: =MAX(M8,M23) -> 18.4 | D8: =AVERAGE(N8,N23) -> 7.95 | E8: =MAX(O8,O23) -> 252.6 | F8: =+F7 -> 50 | G8: =AVERAGE(P8,P23) -> 7.95 | H8: =MAX(Q8,Q23) -> 13.1 | L8: Feb | M8: 18.4 | N8: 10.1 | O8: 252.6 | P8: 10.1 | Q8: 13.1
A9: Mar | B9: =+B8 -> 150 | C9: 26.9 | D9: 9.6 | E9: 308.2 | F9: =+F8 -> 50 | G9: 9.6 | H9: 20.4 | L9: Mar | M9: 26.9 | N9: 13.4 | O9: 308.2 | P9: 13.4 | Q9: 20.4 | S9: Whole Installation table A5:H18:
A10: Apr | B10: 150 | C10: 27 | D10: 10.95 | E10: 138 | F10: 50 | G10: 10.95 | H10: 21.3 | L10: Apr | M10: 27 | N10: 15.1 | O10: 138 | P10: 15.1 | Q10: 21.3 | S10: Mean: for 10-min and daily periods use average of all operational combustion lines.
A11: May | B11: 150 | C11: 32.6 | D11: 13.25 | E11: 447 | F11: 50 | G11: 13.25 | H11: 22.6 | L11: May | M11: 32.6 | N11: 16.2 | O11: 447 | P11: 16.2 | Q11: 22.6
A12: Jun | B12: 150 | C12: 40.6 | D12: 13 | E12: 517.9 | F12: 50 | G12: 12.75 | H12: 23.8 | L12: Jun | M12: 40.6 | N12: 17.7 | O12: 517.9 | P12: 17.7 | Q12: 23.8
A13: Jul | B13: 150 | C13: 84.5 | D13: 8.65 | E13: 379.9 | F13: 50 | G13: 8.35 | H13: 31.2 | L13: Jul | M13: 84.5 | N13: 8.4 | O13: 310.7 | P13: 8.4 | Q13: 30.5 | S13: Maximum: for 10-min and daily periods use the highest of all operational combustion lines in any month.
A14: Aug | B14: 150 | C14: 21.2 | D14: 6.5 | E14: 72.3 | F14: 50 | G14: 6.5 | H14: 10.5 | L14: Aug | M14: 21.2 | N14: 6.7 | O14: 62.3 | P14: 6.7 | Q14: 10.5
A15: Sep | B15: 150 | C15: 17.5 | D15: 7.35 | E15: 312.8 | F15: 50 | G15: 7.3 | H15: 11 | L15: Sep | M15: 16.5 | N15: 7.5 | O15: 312.8 | P15: 7.5 | Q15: 11
A16: Oct | B16: 150 | C16: 18.7 | D16: 8.1 | E16: 273.2 | F16: 50 | G16: 8.1 | H16: 11.9 | L16: Oct | M16: 18.7 | N16: 8.3 | O16: 98.5 | P16: 8.3 | Q16: 9.9
A17: Nov | B17: 150 | C17: 20.9 | D17: 8.15 | E17: 150.2 | F17: 50 | G17: 8.15 | H17: 11.3 | L17: Nov | M17: 20.9 | N17: 7.9 | O17: 48.1 | P17: 7.9 | Q17: 10.9
A18: Dec | B18: 150 | C18: 19.9 | D18: 8.7 | E18: 419.7 | F18: 50 | G18: 8.7 | H18: 13 | L18: Dec | M18: 19 | N18: 8.6 | O18: 419.7 | P18: 8.6 | Q18: 12.1
L19: Annual | M19: =AVERAGE(M7:M18) -> 28.69166667 | N19: =AVERAGE(N7:N18) -> 10.75833333 | O19: =MAX(O7:O18) -> 603.5 | P19: =AVERAGE(P7:P18) -> 10.75833333 | Q19: =MAX(Q7:Q18) -> 30.5
K21: =+A6 -> 2020 | L21: mg/Nm3 | M21: 95%ile 10-min avg maximum | N21: Monthly CO 10-min avg mean | O21: 10-min avg maximum | P21: Monthly daily mean | Q21: Monthly daily maximum
K22: A2 | L22: Jan | M22: 14.3 | N22: 6.1 | O22: 413.2 | P22: 6 | Q22: 8.3
L23: Feb | M23: 11.8 | N23: 5.8 | O23: 223.5 | P23: 5.8 | Q23: 7.8
L24: Mar | M24: 15.5 | N24: 5.8 | O24: 156.1 | P24: 5.8 | Q24: 9.2
L25: Apr | M25: 20.2 | N25: 6.8 | O25: 113.7 | P25: 6.8 | Q25: 11.5
L26: May | M26: 31.7 | N26: 10.3 | O26: 105.7 | P26: 10.3 | Q26: 17.5
L27: Jun | M27: 23 | N27: 8.3 | O27: 154.2 | P27: 7.8 | Q27: 9.9
L28: Jul | M28: 63.9 | N28: 8.9 | O28: 379.9 | P28: 8.3 | Q28: 31.2
L29: Aug | M29: 16.7 | N29: 6.3 | O29: 72.3 | P29: 6.3 | Q29: 8.7
L30: Sep | M30: 17.5 | N30: 7.2 | O30: 176.9 | P30: 7.1 | Q30: 10.1
L31: Oct | M31: 18 | N31: 7.9 | O31: 273.2 | P31: 7.9 | Q31: 11.9
L32: Nov | M32: 19.9 | N32: 8.4 | O32: 150.2 | P32: 8.4 | Q32: 11.3
L33: Dec | M33: 19.9 | N33: 8.8 | O33: 258.5 | P33: 8.8 | Q33: 13
L34: Annual | M34: =AVERAGE(M22:M33) -> 22.7 | N34: =AVERAGE(N22:N33) -> 7.55 | O34: =MAX(O22:O33) -> 413.2 | P34: =AVERAGE(P22:P33) -> 7.441666667 | Q34: =MAX(Q22:Q33) -> 31.2
K36: =+A6 -> 2020 | L36: mg/Nm3 | M36: 95%ile 10-min avg maximum | N36: Monthly CO 10-min avg mean | O36: 10-min avg maximum | P36: Monthly daily mean | Q36: Monthly daily maximum
K37: A3 | L37: Jan
L38: Feb
L39: Mar
L40: Apr
L41: May
L42: Jun
L43: Jul
L44: Aug
L45: Sep
L46: Oct
L47: Nov
A48: Comments : | L48: Dec
A49: Environment Agency explanatory note: The 10-minute average ELV is based on the “95th percentile”. In this case this means that 95% of the 10 minute averages in the relevant 24-hour period (i.e. 137) must be below 150 mg/Nm3, and 5% (i.e. 7) are allowed to be any value above 150 mg/Nm3. Whilst we expect operators to minimise CO emissions at all times, it is perfectly acceptable for the value of the maximum 10-minute average to be above 150 mg/Nm3, provided the 95th percentile ELV has been met for that period. | L49: Annual | M49: =AVERAGE(M37:M48) ->  | O49: =MAX(O37:O48) -> 0 | P49: =AVERAGE(P37:P48) ->  | Q49: =MAX(Q37:Q48) -> 0
K51: =+A6 -> 2020 | L51: mg/Nm3 | M51: 95%ile 10-min avg maximum | N51: Monthly CO 10-min avg mean | O51: 10-min avg maximum | P51: Monthly daily mean | Q51: Monthly daily maximum
K52: A4 | L52: Jan
L53: Feb
L54: Mar
L55: Apr
L56: May
L57: Jun
L58: Jul
L59: Aug
L60: Sep
L61: Oct
L62: Nov
L63: Dec
L64: Annual | M64: =AVERAGE(M52:M63) ->  | O64: =MAX(O52:O63) -> 0 | P64: =AVERAGE(P52:P63) ->  | Q64: =MAX(Q52:Q63) -> 0
K66: =+A6 -> 2020 | L66: mg/Nm3 | M66: 95%ile 10-min avg maximum | N66: Monthly CO 10-min avg mean | O66: 10-min avg maximum | P66: Monthly daily mean | Q66: Monthly daily maximum
K67: A5 | L67: Jan
L68: Feb
L69: Mar
L70: Apr
L71: May
L72: Jun
L73: Jul
L74: Aug
L75: Sep
L76: Oct
L77: Nov
L78: Dec
L79: Annual | M79: =AVERAGE(M67:M78) ->  | O79: =MAX(O67:O78) -> 0 | P79: =AVERAGE(P67:P78) ->  | Q79: =MAX(Q67:Q78) -> 0

Sheet NH3
A1: =+'Cover Page'!$B$29 -> Annual Performance Report 2020 | E1: =+'Cover Page'!$B$33 -> Eastcroft EfW
A3: Monitoring of Ammnonia emissions | D3: Whole Installation | G3: See Notes in Cell Q3 | J3: =+A3 -> Monitoring of Ammnonia emissions | N3: Per Combustion Line | Q3: Notes:
Q4: User to add logic to complete Whole installation, Table A5:G18. From the data in Per Combustion Line, Table J6:O79, subject to No. of lines installed
A5: mg/Nm3 | B5: 1/2 Hourly Reference Periods | E5: Daily Reference Periods
A6: =+'Cover Page'!C39 -> 2020 | B6: 1/2 hourly NH3 ELV | C6: Monthly 1/2 hourly mean | D6: Highest 1/2 hourly maximum | E6: Daily NH3 ELV | F6: Monthly daily mean | G6: Highest daily maximum | J6: =+A6 -> 2020 | K6: mg/Nm3 | L6: Monthly 1/2 hourly mean | M6: Monthly 1/2 hourly maximum | N6: Monthly daily mean | O6: Monthly daily maximum
A7: Jan | B7: 0 | C7: =AVERAGE(L7,L22) -> 0.6 | D7: =MAX(M7,M22) -> 8.6 | E7: 10 | F7: =AVERAGE(N7,N22) -> 0.55 | G7: =MAX(O7,O22) -> 1.1 | J7: A1 | K7: Jan | L7: 0.5 | M7: 4.6 | N7: 0.5 | O7: 0.8
A8: Feb | B8: =+B7 -> 0 | C8: =AVERAGE(L8,L23) -> 1.3 | D8: =MAX(M8,M23) -> 9.2 | E8: =+E7 -> 10 | F8: =AVERAGE(N8,N23) -> 1.2 | G8: =MAX(O8,O23) -> 4 | K8: Feb | L8: 1.1 | M8: 6.8 | N8: 1 | O8: 2.4
A9: Mar | B9: =+B8 -> 0 | C9: 0.9 | D9: 9.3 | E9: =+E8 -> 10 | F9: 0.8 | G9: 2 | K9: Mar | L9: 0.7 | M9: 9.3 | N9: 0.6 | O9: 1.6 | Q9: Whole Installation table A5:G18:
A10: Apr | B10: 0 | C10: 0.5 | D10: 6.2 | E10: 10 | F10: 0.5 | G10: 1.2 | K10: Apr | L10: 0.4 | M10: 6 | N10: 0.4 | O10: 1.1 | Q10: Mean: for 1/2 hourly and daily periods calculate mean of values across all operational combustion lines for the month
A11: May | B11: 0 | C11: 0.95 | D11: 12.2 | E11: 10 | F11: 0.9 | G11: 2.9 | K11: May | L11: 0.8 | M11: 8.1 | N11: 0.7 | O11: 1.3
A12: Jun | B12: 0 | C12: 1.1 | D12: 7.1 | E12: 10 | F12: 0.95 | G12: 2.1 | K12: Jun | L12: 1.2 | M12: 6.8 | N12: 1.1 | O12: 2.1
A13: Jul | B13: 0 | C13: 2.4 | D13: 22.2 | E13: 10 | F13: 2.3 | G13: 9.6 | K13: Jul | L13: 2.5 | M13: 15.2 | N13: 2.4 | O13: 9.6 | Q13: Maximum: for 1/2 hourly and daily periods use the highest value across all operational combustion lines for the month
A14: Aug | B14: 0 | C14: 0.75 | D14: 8.2 | E14: 10 | F14: 0.7 | G14: 1.7 | K14: Aug | L14: 0.7 | M14: 6.9 | N14: 0.6 | O14: 0.9
A15: Sep | B15: 0 | C15: 0.7 | D15: 5.4 | E15: 10 | F15: 0.6 | G15: 1 | K15: Sep | L15: 0.7 | M15: 3 | N15: 0.6 | O15: 0.9
A16: Oct | B16: 0 | C16: 0.8 | D16: 6.7 | E16: 10 | F16: 0.75 | G16: 1.2 | K16: Oct | L16: 0.8 | M16: 3.8 | N16: 0.7 | O16: 1.2
A17: Nov | B17: 0 | C17: 0.8 | D17: 7.4 | E17: 10 | F17: 0.75 | G17: 1.5 | K17: Nov | L17: 0.8 | M17: 4 | N17: 0.8 | O17: 1.1
A18: Dec | B18: 0 | C18: 0.8 | D18: 9.9 | E18: 10 | F18: 0.8 | G18: 2.5 | K18: Dec | L18: 0.8 | M18: 5.9 | N18: 0.8 | O18: 1.8
K19: Annual | L19: =AVERAGE(L7:L18) -> 0.9166666667 | M19: =MAX(M7:M18) -> 15.2 | N19: =AVERAGE(N7:N18) -> 0.85 | O19: =MAX(O7:O18) -> 9.6
J21: =+A6 -> 2020 | K21: mg/Nm3 | L21: Monthly 1/2 hourly mean | M21: Monthly 1/2 hourly maximum | N21: Monthly daily mean | O21: Monthly daily maximum
J22: A2 | K22: Jan | L22: 0.7 | M22: 8.6 | N22: 0.6 | O22: 1.1
K23: Feb | L23: 1.5 | M23: 9.2 | N23: 1.4 | O23: 4
K24: Mar | L24: 1.1 | M24: 5.6 | N24: 1 | O24: 2
K25: Apr | L25: 0.6 | M25: 6.2 | N25: 0.6 | O25: 1.2
K26: May | L26: 1.1 | M26: 12.2 | N26: 1.1 | O26: 2.9
K27: Jun | L27: 1 | M27: 7.1 | N27: 0.8 | O27: 1.8
K28: Jul | L28: 2.3 | M28: 22.2 | N28: 2.2 | O28: 7.1
K29: Aug | L29: 0.8 | M29: 8.2 | N29: 0.8 | O29: 1.7
K30: Sep | L30: 0.7 | M30: 5.4 | N30: 0.6 | O30: 1
K31: Oct | L31: 0.8 | M31: 6.7 | N31: 0.8 | O31: 1.1
K32: Nov | L32: 0.8 | M32: 7.4 | N32: 0.7 | O32: 1.5
K33: Dec | L33: 0.8 | M33: 9.9 | N33: 0.8 | O33: 2.5
K34: Annual | L34: =AVERAGE(L22:L33) -> 1.016666667 | M34: =MAX(M22:M33) -> 22.2 | N34: =AVERAGE(N22:N33) -> 0.95 | O34: =MAX(O22:O33) -> 7.1
J36: =+A6 -> 2020 | K36: mg/Nm3 | L36: Monthly 1/2 hourly mean | M36: Monthly 1/2 hourly maximum | N36: Monthly daily mean | O36: Monthly daily maximum
J37: A3 | K37: Jan
K38: Feb
K39: Mar
K40: Apr
K41: May
K42: Jun
K43: Jul
K44: Aug
K45: Sep
K46: Oct
K47: Nov
A48: Comments : | K48: Dec
A49: An indicated ELV value of zero in the table above means that no ammonia limit is set in the permit. | K49: Annual | L49: =AVERAGE(L37:L48) ->  | M49: =MAX(M37:M48) -> 0 | N49: =AVERAGE(N37:N48) ->  | O49: =MAX(O37:O48) -> 0
J51: =+A6 -> 2020 | K51: mg/Nm3 | L51: Monthly 1/2 hourly mean | M51: Monthly 1/2 hourly maximum | N51: Monthly daily mean | O51: Monthly daily maximum
J52: A4 | K52: Jan
K53: Feb
K54: Mar
K55: Apr
K56: May
K57: Jun
K58: Jul
K59: Aug
K60: Sep
K61: Oct
K62: Nov
K63: Dec
K64: Annual | L64: =AVERAGE(L52:L63) ->  | M64: =MAX(M52:M63) -> 0 | N64: =AVERAGE(N52:N63) ->  | O64: =MAX(O52:O63) -> 0
J66: =+A6 -> 2020 | K66: mg/Nm3 | L66: Monthly 1/2 hourly mean | M66: Monthly 1/2 hourly maximum | N66: Monthly daily mean | O66: Monthly daily maximum
J67: A5 | K67: Jan
K68: Feb
K69: Mar
K70: Apr
K71: May
K72: Jun
K73: Jul
K74: Aug
K75: Sep
K76: Oct
K77: Nov
K78: Dec
K79: Annual | L79: =AVERAGE(L67:L78) ->  | M79: =MAX(M67:M78) -> 0 | N79: =AVERAGE(N67:N78) ->  | O79: =MAX(O67:O78) -> 0
